bitfinex/quotes_SOLUSD_20250719
["timestamp","ask_amount","ask_price","bid_price","bid_amount"]
[1752949146928,4.30126879,176.74,176.73,0.1]
[1752949147145,39.48,176.75,176.73,0.79]
[1752949147330,39.48,176.74,176.73,0.79]
[1752949149820,39.48,176.74,176.73,0.1]
[1752949150023,45.13802874,176.74,176.73,0.1]
[1752949150951,49.43929753,176.74,176.73,0.1]
[1752949153637,45.82802874,176.74,176.73,0.1]
[1752949153828,39.48,176.74,176.73,0.1]
[1752949154030,45.13802874,176.74,176.73,0.1]
[1752949155825,45.21802874,176.74,176.73,0.1]
[1752949156035,39.56,176.74,176.73,0.1]
[1752949156327,39.56,176.74,176.73,0.79]
[1752949156535,5.65748701,176.76,176.73,0.79]
[1752949156738,39.56,176.75,176.74,0.69]
[1752949157256,45.21784478,176.75,176.73,0.79]
[1752949157456,45.21784478,176.75,176.73,0.1]
[1752949159248,3.61126879,176.74,176.73,0.1]
[1752949160446,9.26929753,176.74,176.73,0.1]
[1752949160647,5.65802874,176.74,176.73,0.1]
[1752949161238,49.51904573,176.75,176.73,0.1]
[1752949161457,48.82904573,176.75,176.73,0.1]
[1752949162158,39.56,176.75,176.73,0.1]
[1752949162452,39.56,176.75,176.73,0.79]
[1752949162777,0.69,176.79,176.74,4.30126879]
[1752949163066,0.69,176.79,176.75,4.31126879]
[1752949163067,39.56,176.78,176.75,4.31126879]
[1752949163233,39.56,176.78,176.76,4.31126879]
[1752949163436,0.72,176.83,176.77,4.31126879]
[1752949163633,0.72,176.83,176.82,3.61126879]
[1752949163634,0.06,176.83,176.82,3.61126879]
[1752949163958,39.66,176.83,176.82,3.61126879]
[1752949164338,45.31516545,176.83,176.81,4.31126879]
[1752949164556,45.97516545,176.83,176.8,3.61126879]
[1752949164731,45.97516545,176.83,176.79,6.6231]
[1752949164931,45.97516545,176.83,176.79,4.31126879]
[1752949165133,48.92643424,176.83,176.76,1.5298]
[1752949165444,0.66,176.82,176.78,29.61126879]
[1752949165753,39.62,176.81,176.78,30.31126879]
[1752949165949,0.66,176.8,176.76,5.14106879]
[1752949166133,40.28,176.79,176.76,1.5298]
[1752949167152,40.28,176.79,176.76,5.14106879]
[1752949167733,39.62,176.79,176.77,3.61126879]
[1752949167934,39.62,176.79,176.77,4.31126879]
[1752949168364,45.27645379,176.79,176.77,4.31126879]
[1752949168538,45.27645379,176.79,176.76,5.14106879]
[1752949168734,45.27645379,176.79,176.76,5.84106879]
[1752949169138,39.62,176.79,176.76,5.84106879]
[1752949170259,39.62,176.79,176.78,3.61126879]
[1752949170465,39.62,176.79,176.78,4.31126879]
[1752949170668,49.54779523,176.79,176.75,6.6231]
[1752949170858,0.66,176.78,176.74,3.61126879]
[1752949171042,0.66,176.78,176.75,3.61126879]
[1752949171243,39.62,176.77,176.76,3.61126879]
[1752949171459,39.62,176.77,176.76,4.31126879]
[1752949175550,45.25652644,176.79,176.76,4.31126879]
[1752949176241,45.91652644,176.79,176.76,3.61126879]
[1752949176767,45.25652644,176.79,176.74,0.7]
[1752949176966,0.66,176.78,176.76,3.61126879]
[1752949177338,6.31688849,176.78,176.76,3.61126879]
[1752949178171,6.31688849,176.78,176.75,3.61126879]
[1752949178462,40.24,176.77,176.75,3.61126879]
[1752949178650,40.24,176.77,176.74,3.61126879]
[1752949179252,40.24,176.77,176.73,3.71126879]
[1752949179253,45.89731663,176.77,176.73,3.71126879]
[1752949179656,0.66,176.76,176.73,3.71126879]
[1752949179851,43.21126879,176.75,176.73,0.1]
[1752949180055,0.66,176.74,176.73,0.1]
[1752949181574,6.31802874,176.74,176.73,0.1]
[1752949183778,9.92929753,176.74,176.73,0.1]
[1752949186567,26.7139815,176.74,176.73,1e-08]
[1752949187076,16.78468397,176.73,176.71,1e-08]
[1752949187377,59.97595276,176.72,176.71,1e-08]
[1752949187611,66.29462184,176.72,176.71,1e-08]
[1752949187756,66.79462184,176.72,176.71,1e-08]
[1752949188754,92.79462184,176.72,176.71,1e-08]
[1752949191185,92.29462184,176.72,176.71,1e-08]
[1752949198983,88.68335305,176.72,176.71,1e-08]
[1752949199163,75.50993787,176.72,176.71,1e-08]
[1752949200697,49.50993787,176.72,176.71,1e-08]
[1752949200991,45.23866908,176.72,176.71,1e-08]
[1752949201160,48.84993787,176.72,176.71,1e-08]
[1752949203189,49.50993787,176.72,176.71,1e-08]
[1752949203979,45.23866908,176.72,176.71,1e-08]
[1752949205185,45.23866908,176.72,176.71,0.66000001]
[1752949205486,39.58,176.72,176.71,0.66000001]
[1752949208664,39.58,176.72,176.71,4.2712688]
[1752949209660,0.06,176.73,176.71,4.2712688]
[1752949209858,39.66,176.73,176.72,3.61126879]
[1752949210138,39.66,176.73,176.72,4.27126879]
[1752949210694,0.06,176.73,176.72,9.92993787]
[1752949212364,0.06,176.73,176.72,35.92993787]
[1752949215874,0.06,176.73,176.72,28.28852184]
[1752949216095,0.06,176.77,176.75,26.0]
[1752949216301,0.06,176.77,176.76,29.61126879]
[1752949217102,0.06,176.77,176.76,30.27126879]
[1752949217780,0.06,176.77,176.76,35.92865733]
[1752949219101,0.06,176.77,176.76,39.53992612]
[1752949219400,0.06,176.77,176.76,56.32461009]
[1752949222484,0.06,176.77,176.76,62.72461009]
[1752949222690,0.06,176.77,176.76,56.32461009]
[1752949223004,0.06,176.77,176.76,63.95351009]
[1752949223200,0.06,176.79,176.77,16.78468397]
[1752949223503,0.06,176.79,176.78,69.19126879]
[1752949223695,0.06,176.79,176.78,43.87126879]
[1752949224198,0.06,176.79,176.78,49.52801729]
[1752949226292,0.06,176.79,176.78,66.31270126]
[1752949228610,0.06,176.81,176.8,26.0]
[1752949228909,0.06,176.81,176.8,59.95595276]
[1752949229073,0.06,176.81,176.8,60.63595276]
[1752949229677,0.06,176.81,176.8,66.29206135]
[1752949230478,0.06,176.81,176.8,100.19206135]
[1752949231008,0.06,176.83,176.82,24.91698397]
[1752949231300,0.06,176.83,176.82,68.06825276]
[1752949231517,0.06,176.83,176.82,68.74825276]
[1752949231683,0.06,176.83,176.82,74.40372159]
[1752949232506,0.06,176.83,176.82,111.91499038]
[1752949232891,0.06,176.87,176.85,26.0]
[1752949233095,0.06,176.87,176.86,3.61126879]
[1752949233402,0.06,176.87,176.86,4.29126879]
[1752949233704,0.06,176.87,176.86,9.94545854]
[1752949237724,0.06,176.87,176.86,26.73014251]
[1752949240211,0.06,176.87,176.86,5.65418975]
[1752949240404,0.73,176.87,176.86,3.61126879]
[1752949240806,0.73,176.87,176.86,29.61126879]
[1752949242212,0.73,176.87,176.86,26.0]
[1752949244251,0.73,176.87,176.86,3.61126879]
[1752949244743,0.73,176.87,176.85,29.61126879]
[1752949245170,0.06,176.87,176.86,26.0]
[1752949245314,0.06,176.87,176.86,3.61126879]
[1752949245912,0.06,176.87,176.85,32.33440432]
[1752949246113,0.06,176.87,176.86,3.61126879]
[1752949250020,0.06,176.87,176.86,9.26545854]
[1752949250220,0.06,176.87,176.86,9.94545854]
[1752949251564,0.06,176.87,176.86,9.26545854]
[1752949252253,0.06,176.87,176.86,3.61126879]
[1752949253622,0.06,176.87,176.86,9.26545854]
[1752949254646,0.06,176.87,176.86,9.93545854]
[1752949255944,0.06,176.87,176.86,6.32418975]
[1752949256253,0.06,176.87,176.86,9.93545854]
[1752949257456,0.06,176.87,176.86,26.72014251]
[1752949257634,0.06,176.87,176.86,60.62014251]
[1752949259852,0.06,176.91,176.89,26.0]
[1752949260036,0.06,176.91,176.9,3.61126879]
[1752949260549,0.06,176.91,176.9,4.28126879]
[1752949260750,0.06,176.91,176.9,30.28126879]
[1752949260938,0.06,176.91,176.9,47.06595276]
[1752949261129,0.06,176.91,176.9,52.718864]
[1752949262561,0.06,176.91,176.9,92.218864]
[1752949262750,0.06,176.91,176.9,96.81379399]
[1752949262923,0.06,176.91,176.9,130.71379399]
[1752949263351,0.06,176.95,176.93,26.0]
[1752949263558,0.06,176.95,176.94,46.70253758]
[1752949263759,0.06,176.95,176.94,47.37253758]
[1752949264032,0.06,176.95,176.94,43.76126879]
[1752949265555,0.06,176.95,176.94,49.41290211]
[1752949266139,0.06,176.95,176.94,69.80885487]
[1752949266347,0.06,176.95,176.94,103.70885487]
[1752949266733,0.06,177.0,176.97,26.0]
[1752949267059,0.06,177.0,176.99,20.39595276]
[1752949267435,0.06,177.0,176.99,26.71598948]
[1752949268057,0.06,177.0,176.99,26.04598948]
[1752949268230,0.06,177.0,176.99,65.50598948]
[1752949269744,0.06,177.0,176.99,66.17598948]
[1752949270345,0.06,177.0,176.99,100.07598948]
[1752949270562,0.06,177.0,176.99,43.07126879]
[1752949270764,0.77,177.0,176.99,26.0]
[1752949271555,0.77,177.0,176.99,3.61126879]
[1752949271761,0.77,177.0,176.99,29.61126879]
[1752949274868,0.06,177.0,176.99,29.61126879]
[1752949275565,0.06,177.0,176.99,75.39130551]
[1752949277345,0.06,177.0,176.99,29.61126879]
[1752949277549,0.77,177.0,176.99,3.61126879]
[1752949288385,0.77,177.0,176.98,26.0]
[1752949288585,0.77,177.0,176.99,3.61126879]
[1752949290070,0.06,177.0,176.99,3.61126879]
[1752949290875,0.06,177.0,176.99,9.93130551]
[1752949291264,0.06,177.0,176.99,26.71598948]
[1752949292159,0.06,177.0,176.99,60.61598948]
[1752949294080,0.06,177.0,176.99,22.43472069]
[1752949294279,0.06,177.0,176.99,26.04598948]
[1752949294462,0.06,177.0,176.99,26.71598948]
[1752949295855,0.06,177.0,176.99,9.26130551]
[1752949296785,0.06,177.0,176.99,48.70130551]
[1752949296985,0.06,177.0,176.99,9.26130551]
[1752949297186,0.06,177.0,176.99,48.70130551]
[1752949297353,0.06,177.0,176.99,9.26130551]
[1752949297685,0.06,177.0,176.99,29.61126879]
[1752949297871,0.06,177.0,176.99,69.03126879]
[1752949299095,0.06,177.0,176.99,65.42]
[1752949299096,0.78,177.0,176.99,65.42]
[1752949299380,0.78,177.0,176.95,0.7]
[1752949299381,0.78,177.0,176.97,3.61126879]
[1752949299558,0.78,177.0,176.96,3.61126879]
[1752949299759,6.43002704,177.0,176.96,3.61126879]
[1752949299958,5.71002704,177.0,176.97,26.0]
[1752949300189,0.72,176.99,176.97,26.0]
[1752949300981,0.06,177.0,176.99,26.0]
[1752949301188,0.78,177.0,176.99,29.61126879]
[1752949301682,0.78,177.0,176.99,26.0]
[1752949302660,6.42971751,177.0,176.97,26.0]
[1752949302883,9.3209863,177.0,176.97,26.0]
[1752949303060,0.72,176.99,176.97,26.0]
[1752949303963,6.37011815,176.99,176.97,26.0]
[1752949304275,0.72,176.98,176.97,26.0]
[1752949309873,0.78,177.0,176.97,29.61126879]
[1752949310194,0.72,176.99,176.97,29.61126879]
[1752949310991,0.06,177.0,176.98,3.61126879]
[1752949311299,0.06,177.0,176.99,3.61126879]
[1752949313301,0.06,177.0,176.99,35.26130551]
[1752949313484,0.06,177.0,176.99,30.28126879]
[1752949313862,0.06,177.0,176.99,29.61126879]
[1752949315775,0.06,177.0,176.99,30.28126879]
[1752949316776,0.06,177.0,176.99,35.93130551]
[1752949317374,0.06,177.0,176.99,75.35130551]
[1752949319675,0.06,177.0,176.99,92.13598948]
[1752949320385,0.06,177.0,176.99,126.03598948]
[1752949320993,0.06,177.0,176.99,132.43598948]
[1752949324376,0.06,177.02,177.01,16.78468397]
[1752949324574,0.06,177.02,177.01,104.27216138]
[1752949324806,0.06,177.02,177.01,104.94216138]
[1752949325692,0.06,177.02,177.01,110.59155971]
[1752949326890,0.06,177.03,177.01,110.59155971]
[1752949327204,0.06,177.03,177.02,24.67722155]
[1752949327577,0.06,177.03,177.02,30.32630075]
[1752949328007,0.06,177.03,177.02,64.22630075]
[1752949328205,0.06,177.04,177.03,24.00722155]
[1752949328411,0.06,177.04,177.03,63.40722155]
[1752949328578,0.06,177.04,177.03,64.07722155]
[1752949329604,0.06,177.04,177.03,69.72598164]
[1752949329803,0.06,177.07,177.03,76.69085764]
[1752949329985,0.06,177.07,177.04,21.06595276]
[1752949331098,0.06,177.07,177.04,27.46595276]
[1752949331400,0.06,177.07,177.05,20.39595276]
[1752949331605,0.06,177.07,177.05,73.07888694]
[1752949332306,0.06,177.08,177.07,42.78468397]
[1752949332476,0.06,177.08,177.07,85.79595276]
[1752949332681,0.06,177.08,177.07,92.86595276]
[1752949332983,0.06,177.08,177.07,93.43070116]
[1752949333187,0.06,177.1,177.08,16.78468397]
[1752949333386,0.06,177.1,177.08,21.06595276]
[1752949334211,0.06,177.1,177.08,26.71311788]
[1752949335911,0.06,177.1,177.08,33.11311788]
[1752949340393,0.06,177.1,177.08,67.01311788]
[1752949340813,0.06,177.1,177.08,12.04716512]
[1752949341119,0.78,177.09,177.08,49.39126879]
[1752949341409,0.78,177.09,177.08,75.39126879]
[1752949341815,0.78,177.09,177.08,68.99126879]
[1752949342205,0.78,177.09,177.08,74.63843391]
[1752949342822,0.06,177.09,177.08,91.42311788]
[1752949344196,0.06,177.09,177.08,65.42311788]
[1752949347627,0.06,177.09,177.08,71.82311788]
[1752949347826,0.06,177.09,177.08,72.51311788]
[1752949349101,0.06,177.1,177.08,76.12438667]
[1752949349322,0.06,177.1,177.09,25.26190617]
[1752949350134,0.06,177.11,177.09,30.9087524]
[1752949350305,0.7,177.18,177.13,16.78468397]
[1752949350504,0.76,177.17,177.16,29.61126879]
[1752949352104,0.76,177.17,177.13,6.4]
[1752949352303,6.40429643,177.17,177.13,10.01126879]
[1752949352499,0.7,177.16,177.14,3.61126879]
[1752949352703,0.7,177.15,177.14,3.61126879]
[1752949352921,0.06,177.17,177.14,3.61126879]
[1752949352922,0.76,177.17,177.14,3.61126879]
[1752949353127,0.06,177.17,177.16,29.61126879]
[1752949353711,0.76,177.17,177.16,29.61126879]
[1752949354421,0.76,177.17,177.16,26.0]
[1752949354620,0.76,177.17,177.16,29.61126879]
[1752949355509,6.40429643,177.17,177.15,3.61126879]
[1752949355718,0.7,177.16,177.15,26.0]
[1752949356417,0.7,177.16,177.14,3.61126879]
[1752949357219,0.06,177.17,177.15,3.61126879]
[1752949357510,0.06,177.17,177.16,29.61126879]
[1752949359752,0.06,177.17,177.16,35.25588382]
[1752949359930,0.06,177.17,177.16,75.36588382]
[1752949360435,0.06,177.17,177.16,74.67588382]
[1752949360744,0.06,177.17,177.16,75.36588382]
[1752949362450,0.06,177.17,177.16,74.67588382]
[1752949362745,0.06,177.17,177.16,92.15056779]
[1752949363031,0.06,177.17,177.16,92.71502929]
[1752949363250,0.06,177.17,177.16,126.57502929]
[1752949363430,0.06,177.19,177.16,126.01056779]
[1752949363613,0.06,177.19,177.18,20.39595276]
[1752949363812,0.06,177.19,177.18,66.21595276]
[1752949364037,0.06,177.19,177.18,66.90595276]
[1752949364837,0.06,177.19,177.18,106.40993063]
[1752949365353,0.06,177.19,177.18,110.02119942]
[1752949365731,0.06,177.19,177.18,106.40993063]
[1752949366247,0.06,177.19,177.18,29.51866184]
[1752949366455,0.06,177.19,177.18,72.54993063]
[1752949367427,0.2,177.23,177.18,76.16119942]
[1752949367634,0.2,177.23,177.22,3.61126879]
[1752949367965,0.2,177.23,177.22,49.49126879]
[1752949369259,0.2,177.23,177.22,50.18126879]
[1752949369428,0.2,177.23,177.22,55.82397277]
[1752949369627,0.2,177.23,177.22,55.13397277]
[1752949370448,0.2,177.23,177.22,72.60865674]
[1752949374525,13.84194959,177.33,177.28,3.61126879]
[1752949374526,0.67,177.31,177.28,3.61126879]
[1752949374727,0.67,177.31,177.29,43.09126879]
[1752949374927,0.67,177.31,177.28,43.09126879]
[1752949375337,0.67,177.3,177.28,39.48]
[1752949375551,0.67,177.3,177.29,3.61126879]
[1752949376445,0.67,177.3,177.29,26.0]
[1752949376644,0.67,177.3,177.29,29.61126879]
[1752949377228,0.06,177.31,177.29,29.61126879]
[1752949377445,0.73,177.31,177.3,3.61126879]
[1752949380561,6.36983982,177.31,177.29,26.0]
[1752949380735,0.67,177.3,177.29,26.0]
[1752949382359,6.31015792,177.3,177.27,6.4]
[1752949382557,0.67,177.29,177.27,6.4]
[1752949382965,3.61126879,177.28,177.27,6.4]
[1752949383343,4.28126879,177.28,177.27,6.4]
[1752949383542,9.92206301,177.28,177.27,6.4]
[1752949385944,6.31079422,177.28,177.27,6.4]
[1752949386140,0.67,177.28,177.24,3.61126879]
[1752949386346,0.67,177.27,177.25,3.61126879]
[1752949386654,9.25146939,177.3,177.25,3.61126879]
[1752949386849,0.67,177.29,177.26,3.61126879]
[1752949387171,0.67,177.28,177.26,3.61126879]
[1752949387349,0.67,177.28,177.25,3.61126879]
[1752949387545,0.67,177.27,177.25,3.61126879]
[1752949388867,9.25146939,177.3,177.25,3.61126879]
[1752949389069,0.67,177.29,177.26,3.61126879]
[1752949389248,5.6402006,177.3,177.26,3.61126879]
[1752949389456,0.67,177.28,177.26,3.61126879]
[1752949390471,0.67,177.27,177.26,3.61126879]
[1752949390971,0.67,177.27,177.25,3.61126879]
[1752949392650,0.67,177.27,177.24,5.64199322]
[1752949392961,0.67,177.29,177.26,3.61126879]
[1752949393173,0.67,177.28,177.26,3.61126879]
[1752949393471,5.6402006,177.3,177.26,3.61126879]
[1752949393472,6.3102006,177.3,177.26,4.31126879]
[1752949393775,0.67,177.29,177.26,3.61126879]
[1752949393953,0.67,177.28,177.26,3.61126879]
[1752949397879,0.67,177.28,177.27,29.61126879]
[1752949398485,0.67,177.28,177.27,26.0]
[1752949398658,0.67,177.28,177.27,29.61126879]
[1752949399855,6.31079422,177.28,177.27,26.0]
[1752949400309,0.67,177.28,177.27,26.0]
[1752949400458,0.73,177.31,177.27,29.61126879]
[1752949400659,0.67,177.3,177.27,29.61126879]
[1752949400861,0.67,177.3,177.27,26.0]
[1752949401060,0.67,177.3,177.27,29.61126879]
[1752949401890,0.67,177.29,177.27,29.61126879]
[1752949402979,0.77,177.31,177.28,3.61126879]
[1752949403181,0.77,177.31,177.3,3.61126879]
[1752949403580,0.06,177.31,177.3,3.61126879]
[1752949403788,0.06,177.31,177.3,30.28126879]
[1752949404683,0.06,177.31,177.3,29.61126879]
[1752949405381,0.06,177.31,177.3,26.0]
[1752949405585,0.77,177.31,177.28,10.01126879]
[1752949405784,0.77,177.31,177.28,6.4]
[1752949406483,0.77,177.31,177.27,43.09126879]
[1752949406484,4.38126879,177.31,177.27,26.0]
[1752949406679,0.71,177.3,177.25,3.61126879]
[1752949406881,5.64047605,177.29,177.25,3.61126879]
[1752949407090,0.71,177.28,177.23,0.03]
[1752949407282,0.71,177.28,177.24,3.61126879]
[1752949407676,9.25174484,177.29,177.24,3.61126879]
[1752949407998,0.71,177.29,177.27,3.61126879]
[1752949408294,0.71,177.28,177.26,3.61126879]
[1752949408475,0.71,177.28,177.25,29.61126879]
[1752949408669,0.71,177.27,177.25,29.61126879]
[1752949409405,5.64068432,177.29,177.26,3.61126879]
[1752949409406,0.71,177.29,177.26,3.61126879]
[1752949409975,0.71,177.29,177.27,29.61126879]
[1752949410198,0.06,177.31,177.27,29.61126879]
[1752949410199,6.40990883,177.31,177.27,29.61126879]
[1752949410501,5.69990883,177.31,177.27,29.61126879]
[1752949410680,0.71,177.3,177.27,29.61126879]
[1752949411604,6.35020298,177.3,177.27,29.61126879]
[1752949412296,0.71,177.29,177.27,29.61126879]
[1752949412678,0.71,177.29,177.27,26.0]
[1752949412878,0.71,177.28,177.27,26.0]
[1752949413693,0.71,177.28,177.26,3.61126879]
[1752949414607,6.35020298,177.3,177.26,3.61126879]
[1752949414908,0.71,177.29,177.26,3.61126879]
[1752949415408,0.71,177.29,177.25,5.64172117]
[1752949415613,6.40993131,177.31,177.27,3.61126879]
[1752949415823,6.40993131,177.31,177.28,3.61126879]
[1752949416879,0.77,177.31,177.28,3.61126879]
[1752949417835,0.06,177.31,177.28,4.28126879]
[1752949418316,6.40989273,177.31,177.28,4.28126879]
[1752949418615,6.40989273,177.31,177.28,3.61126879]
[1752949418810,0.77,177.31,177.28,3.61126879]
[1752949419187,0.71,177.3,177.28,3.61126879]
[1752949419499,0.71,177.29,177.27,29.61126879]
[1752949420080,0.71,177.28,177.27,26.0]
[1752949420298,0.71,177.28,177.27,29.61126879]
[1752949421105,0.71,177.28,177.27,26.0]
[1752949421310,0.71,177.28,177.27,29.61126879]
[1752949421717,0.71,177.3,177.27,29.61126879]
[1752949421917,0.71,177.3,177.27,26.0]
[1752949422128,0.06,177.28,177.27,29.61126879]
[1752949427042,0.06,177.28,177.27,30.28126879]
[1752949428640,0.06,177.28,177.27,35.92238121]
[1752949430434,0.06,177.28,177.27,75.36238121]
[1752949431760,0.06,177.28,177.27,81.76238121]
[1752949436061,0.06,177.28,177.27,42.32238121]
[1752949436249,0.06,177.28,177.27,81.72238121]
[1752949436748,0.06,177.28,177.27,75.41126879]
[1752949436947,0.06,177.28,177.27,36.01126879]
[1752949438551,0.06,177.28,177.27,41.65238121]
[1752949439645,0.06,177.28,177.27,47.30038121]
[1752949439843,0.06,177.28,177.27,41.65238121]
[1752949440486,0.06,177.28,177.27,36.01126879]
[1752949440781,0.06,177.28,177.27,41.65238121]
[1752949441139,0.06,177.28,177.27,38.04111242]
[1752949441334,0.06,177.28,177.27,32.4]
[1752949441539,0.06,177.28,177.27,36.01126879]
[1752949441751,0.73,177.28,177.27,32.4]
[1752949441958,0.73,177.28,177.27,6.4]
[1752949442351,0.73,177.28,177.26,3.61126879]
[1752949443167,0.67,177.27,177.26,26.0]
[1752949445262,6.31111242,177.27,177.24,10.01126879]
[1752949445445,0.67,177.26,177.24,6.4]
[1752949445640,5.64111242,177.27,177.24,10.01126879]
[1752949445857,0.67,177.25,177.24,10.01126879]
[1752949446053,0.67,177.25,177.24,29.61126879]
[1752949446461,0.06,177.28,177.24,76.213253]
[1752949446678,0.06,177.28,177.27,29.61126879]
[1752949446864,0.06,177.28,177.27,125.29706518]
[1752949447046,0.06,177.31,177.3,76.64468397]
[1752949447251,0.06,177.31,177.3,123.28722155]
[1752949447447,0.06,177.31,177.3,123.98722155]
[1752949448377,0.06,177.31,177.3,129.62737947]
[1752949448774,0.06,177.31,177.3,135.27537947]
[1752949449577,0.06,177.31,177.3,129.62737947]
[1752949449757,0.06,177.31,177.3,135.27537947]
[1752949450621,0.06,177.31,177.3,59.86]
[1752949450793,0.06,177.31,177.3,119.71595276]
[1752949451488,0.06,177.31,177.3,69.07126879]
[1752949451720,0.06,177.31,177.3,3.61126879]
[1752949455221,0.73,177.31,177.29,39.46]
[1752949455435,0.73,177.31,177.3,3.61126879]
[1752949455600,0.73,177.31,177.3,29.61126879]
[1752949456027,0.06,177.31,177.3,29.61126879]
[1752949456527,0.06,177.31,177.3,3.61126879]
[1752949457245,0.73,177.31,177.3,29.61126879]
[1752949458725,0.73,177.31,177.3,26.0]
[1752949459819,0.73,177.31,177.3,29.61126879]
[1752949461221,0.06,177.31,177.3,29.61126879]
[1752949462220,0.06,177.31,177.3,26.0]
[1752949462420,0.06,177.31,177.3,29.61126879]
[1752949466434,0.74,177.31,177.3,29.61126879]
[1752949466611,0.74,177.31,177.3,26.0]
[1752949468311,0.74,177.31,177.3,29.61126879]
[1752949469027,0.06,177.31,177.3,29.61126879]
[1752949469445,0.06,177.31,177.3,26.0]
[1752949469647,0.74,177.31,177.3,26.0]
[1752949470459,4.35126879,177.31,177.28,26.0]
[1752949470629,0.68,177.3,177.28,26.0]
[1752949470826,0.68,177.3,177.25,45.8]
[1752949470827,4.29126879,177.3,177.25,10.01126879]
[1752949471021,4.29126879,177.29,177.25,3.61126879]
[1752949471342,0.68,177.28,177.26,26.0]
[1752949471523,6.32085129,177.28,177.26,26.0]
[1752949471729,0.68,177.28,177.26,29.61126879]
[1752949471934,6.37994445,177.31,177.27,3.61126879]
[1752949472137,0.68,177.3,177.27,3.61126879]
[1752949472534,0.06,177.31,177.29,3.61126879]
[1752949473527,0.74,177.31,177.29,3.61126879]
[1752949475751,0.06,177.31,177.29,3.61126879]
[1752949476128,0.68,177.3,177.28,29.61126879]
[1752949476542,0.68,177.29,177.28,29.61126879]
[1752949479039,0.74,177.31,177.28,29.61126879]
[1752949479434,0.74,177.31,177.29,3.61126879]
[1752949479847,0.06,177.31,177.3,3.61126879]
[1752949480845,0.06,177.31,177.3,4.29126879]
[1752949481245,0.06,177.31,177.3,3.61126879]
[1752949482553,0.06,177.31,177.3,9.25142671]
[1752949482752,0.06,177.31,177.3,9.93142671]
[1752949484539,0.06,177.31,177.3,9.25142671]
[1752949485161,0.06,177.31,177.3,9.93142671]
[1752949490246,0.06,177.31,177.3,9.25142671]
[1752949490461,0.74,177.31,177.29,5.64038434]
[1752949490659,0.74,177.31,177.3,3.61126879]
[1752949490965,0.06,177.31,177.29,3.61126879]
[1752949491147,0.68,177.3,177.29,3.61126879]
[1752949491465,0.74,177.31,177.29,3.61126879]
[1752949491667,0.74,177.31,177.3,3.61126879]
[1752949492070,0.06,177.31,177.3,3.61126879]
[1752949492570,0.06,177.31,177.3,4.29126879]
[1752949493971,0.06,177.31,177.3,9.93142671]
[1752949495060,0.06,177.31,177.3,30.32737947]
[1752949497368,0.06,177.31,177.3,64.18737947]
[1752949498066,0.06,177.35,177.34,76.64468397]
[1752949498269,0.06,177.35,177.34,119.63595276]
[1752949498444,0.06,177.35,177.34,120.32595276]
[1752949499451,0.06,177.35,177.34,125.96483851]
[1752949501669,0.06,177.36,177.34,125.96483851]
[1752949501887,0.06,177.36,177.35,38.16126879]
[1752949502746,0.72,177.45,177.36,58.43428397]
[1752949503052,0.72,177.43,177.36,102.09555276]
[1752949503451,0.72,177.41,177.36,58.59433385]
[1752949503652,0.72,177.4,177.36,95.64293385]
[1752949503887,0.72,177.4,177.36,99.94420264]
[1752949506450,9.2471873,177.44,177.36,99.94420264]
[1752949506653,0.72,177.42,177.36,99.94420264]
[1752949507275,0.72,177.42,177.36,106.34420264]